Cogmind - Beta 16 @@@ ROGUE MODE // 2025.12.19 @ 02:14:48 Player: AngelSpirit Result: Destroyed by Y-45 Defender with Beam Rifle Performance ------------- Evolutions (0) 0 Regions Visited (3) 600 Robots Destroyed (27) 135 Value Destroyed (709) 709 Prototype IDs (2) 40 Alien Tech Used (0) 0 Bonus (0) 0 TOTAL SCORE: 1484 Bonus ------- None Cogmind --------- Core Integrity 0/250 Matter 271/300 Energy 123/125 System Corruption 0% Temperature Warning (348) Movement Rolling (120) Ox2 Location -9/Recycling Parts ------- > --- POWER (1) -------- Light Ion Engine > --- PROPULSION (2) --- Armored Wheel Armored Wheel > --- UTILITY (2) ------ High-capacity Storage Unit Hardened Light Armor Plating > --- WEAPON (2) ------- Subdweller Beam Cannon > --- INVENTORY (20) --- Wheel Compact Wheel High-capacity Matter Pod (200) Sensor Array Powered Cannon Light Assault Rifle Rocket Launcher Peak State ------------ > --- POWER ------------ Light Ion Engine > --- PROPULSION ------- Armored Wheel Armored Wheel > --- UTILITY ---------- Small Storage Unit Hacking Suite > --- WEAPON ----------- Subdweller Beam Cannon Improved Light Cannon > --- INVENTORY -------- Wheel Compact Wheel High-capacity Matter Pod Hardened Light Armor Plating Powered Cannon Light Assault Rifle Rocket Launcher [Rating: 15] Favorites ----------- Power Ion Engine Engine Ion Engine Propulsion Compact Wheel Wheel Compact Wheel Utility Small Storage Unit Storage Small Storage Unit Hackware Hacking Suite Protection Hardened Light Armor Plating Weapon Assault Rifle Energy Cannon Subdweller Beam Cannon Ballistic Gun Assault Rifle Ballistic Cannon Improved Light Cannon Launcher Grenade Launcher Build | -11 -10 -10 -9 ------- Run | Yrd Mat Sub Rec Slots Evolved . | . . . . Power . | . . . . Propulsion . | . . . . Utility . | . . . . Weapon . | . . . . Parts Attached 22 | 6 4 6 6 Power 3 | 1 . 2 . Engine 3 | 1 . 2 . Core . | . . . . Reactor . | . . . . Propulsion 8 | 2 2 2 2 Treads . | . . . . Leg . | . . . . Wheel 8 | 2 2 2 2 Hover . | . . . . Flight . | . . . . Utility 4 | 1 . . 3 Device . | . . . . Storage 2 | 1 . . 1 Processor . | . . . . Hackware 1 | . . . 1 Protection 1 | . . . 1 Artifact . | . . . . Weapon 7 | 2 2 2 1 Energy Gun . | . . . . Energy Cannon 2 | . . 2 . Ballistic Gun 3 | 2 1 . . Ballistic Cannon 1 | . . . 1 Launcher 1 | . 1 . . Special Weapon . | . . . . Impact Weapon . | . . . . Slashing Weapon . | . . . . Piercing Weapon . | . . . . Special Melee Weapon . | . . . . Unidentified Prototypes . | . . . . Parts Lost 7 | . 2 4 1 Power 1 | . . 1 . Propulsion 3 | . 2 1 . Utility . | . . . . Weapon 3 | . . 2 1 Highest Loss Streak 3 | . 1 3 1 To Critical Strikes . | . . . . Average Backups 4 | . 2 6 6 Power . | . . . . Propulsion 1 | . . 1 1 Utility 1 | . . 2 2 Weapon 1 | . 1 1 2 Tool/Special . | . . . . Unused Backups 7 | . 1 . 6 Power . | . . . . Propulsion 1 | . . . 1 Utility 2 | . . . 2 Weapon 4 | . 1 . 3 Tool/Special . | . . . . Average Slot Usage (%) 85 | . 79 83 98 Engine 13 | . 14 13 14 Wheel 25 | . 23 27 28 Storage 13 | . 13 14 14 Hackware 3 | . . . 12 Energy Cannon 9 | . . 15 19 Ballistic Gun 15 | . 27 11 . Ballistic Cannon 2 | . . . 8 Peak Build Rating 15 | 6 6 11 15 Average Rating 8 | 4 5 8 14 On Entrance 5 | . 6 6 10 Avg Prop Armor Cover (%) . | . . . . Naked Turns . | . . . . Heaviest Build 60 | 13 14 21 60 Greatest Support 36 | 26 32 36 36 Greatest Overweight (x) 2 | . 2 . 2 Average Overweight (x) . | . . . . Largest Inventory Capacity 20 | 8 8 8 20 Average Capacity 9 | 7 7 8 13 Most Carried 9 | . 6 8 9 Average Carried 5 | . 2 6 8 Final Capacity 20 | 8 8 8 20 Final Carried 8 | . 6 7 8 Class Distribution -------------------- 80% | Mutant 19% | Scavenger-Mutant Dominant Class ---------------- Mutant | -10/Materials Mutant | -10/Subcaves Mutant | -9/Recycling Resources | -11 -10 -10 -9 ----------- Run | Yrd Mat Sub Rec Matter Collected 964 | 224 419 241 80 Remotely . | . . . . Salvage Created 838 | . 578 138 122 Parts 53 | . 38 10 5 Haulers Intercepted 1 | . 1 . . Recyclers Shooed 2 | . 2 . . Parts Field Recycled . | . . . . Retrieved Matter . | . . . . Parts Self-Destructed 10 | . . 10 . Prevented . | . . . . Parts Restored . | . . . . Kills | -11 -10 -10 -9 ------- Run | Yrd Mat Sub Rec Combat Hostiles Destroyed 18 | . 11 5 2 Guns 11 | . 8 3 . Cannons 4 | . . 2 2 AOE 3 | . 3 . . Classes Destroyed 8 | . 6 1 1 Hauler 1 | . 1 . . Recycler 3 | . 2 . 1 Operator 3 | . 3 . . Watcher 2 | . 2 . . Swarmer 3 | . 3 . . Grunt 9 | . 8 . 1 Programmer 1 | . . . 1 Subdweller 5 | . . 5 . Best Kill Streak 8 | . 8 3 3 Combat Bots Only 4 | . 4 3 2 Max Kills in Single Turn 3 | . 3 1 1 Gunslinging . | . . . . Exploded 3 | . 3 . . Melee . | . . . . Uniques/NPCs Destroyed . | . . . . Combat | -11 -10 -10 -9 -------- Run | Yrd Mat Sub Rec Hostile Shots Fired 101 | . 46 44 11 Missed 30 | . 15 14 1 Hits 71 | . 31 30 10 Projectile 71 | . 31 30 10 Critical Strikes 1 | . 1 . . Damage Taken 997 | . 384 488 125 Core 254 | . 97 143 14 Absorbed by Shields . | . . . . Core Remaining (%) 100 | 100 . . . Volleys Fired 87 | . 57 24 6 Largest 2 | . 2 2 2 Hottest 113 | . 40 80 113 Shots Fired 150 | . 103 35 12 Gun 116 | . 100 16 . Cannon 27 | . . 15 12 Launcher 7 | . 3 4 . Special . | . . . . Kinetic 122 | . 100 16 6 Thermal 21 | . . 15 6 Explosive 7 | . 3 4 . Electromagnetic . | . . . . Robot Hit Streak 15 | . 8 15 8 Robot Miss Streak 5 | . 5 1 2 Penetration Max . | . . . . Secondary Targets 3 | . 1 2 . Max Gunslinging Chain 1 | . 1 1 . Shots Hit Robots 91 | . 62 21 8 Core Hits 52 | . 37 11 4 Critical Kills . | . . . . Critical Parts Destroyed . | . . . . Critical Strikes . | . . . . Melee Attacks . | . . . . Impact . | . . . . Slashing . | . . . . Piercing . | . . . . Sneak Attacks . | . . . . Combat Hostiles . | . . . . Follow-up Attacks . | . . . . Damage Inflicted 1776 | . 960 570 246 Guns 827 | . 664 163 . Cannons 332 | . . 86 246 Explosions 617 | . 296 321 . Melee . | . . . . Ramming . | . . . . Kinetic 925 | . 664 163 98 Thermal 234 | . . 86 148 Explosive 617 | . 296 321 . Electromagnetic . | . . . . Impact . | . . . . Slashing . | . . . . Piercing . | . . . . Highest Corruption . | . . . . Average Corruption . | . . . . Corruption Purged . | . . . . Corruption Blocked . | . . . . Overload Shots . | . . . . Overflow Damage 9 | . . . 9 Projectiles 9 | . . . 9 Explosions . | . . . . Melee . | . . . . Knockbacks 2 | . . . 2 Impact . | . . . . Kinetic 2 | . . . 2 Secondary . | . . . . Self-Inflicted Damage 82 | . 23 59 . Shots 4 | . 1 3 . Rammed . | . . . . Targets Rammed . | . . . . Kicked . | . . . . Crushed . | . . . . Highest Temperature 429 | . 16 18 429 Average Temperature 133 | . 7 18 258 Received Heat Transfer 342 | . 198 93 51 Siege Activations . | . . . . Martial Activations . | . . . . Shielding Activations . | . . . . Robots Disrupted . | . . . . Combat Hostiles . | . . . . Robots Corrupted . | . . . . Combat Hostiles . | . . . . Parts Fried . | . . . . Impact Corruptions . | . . . . Robots Melted . | . . . . Combat Hostiles . | . . . . Parts Melted 1 | . . 1 . Heat Transferred 334 | . . 185 149 Parts Sabotaged . | . . . . Parts Stolen . | . . . . Parts Stripped . | . . . . Power Chain Reactions . | . . . . Alert | -11 -10 -10 -9 ------- Run | Yrd Mat Sub Rec Maximum Alert Level 1 | . 1 . . Low Security (%) 96 | 100 94 . 100 Level 1 3 | . 5 . . Level 2 . | . . . . Level 3 . | . . . . Level 4 . | . . . . Level 5 . | . . . . High Security . | . . . . Max Security . | . . . . Peak Influence 214 | . 214 . 47 Initial 3 | . . . 3 Average 61 | . 93 . 12 Influence Increases 716 | . 515 45 156 Destroy 0b10 Robot/C 260 | . 220 . 40 Destroy 0b10 Robot/NC 45 | . 40 . 5 Destroy Leader 46 | . 46 . . Successful Hack 70 | . 51 . 19 Select Force Hacks 90 | . . . 90 Destroy Structure 25 | . 23 . 2 Lose Combat Pursuer 180 | . 135 45 . Influence Decreases 687 | . 317 236 134 Entered New Map 100 | . . 96 4 Time Decay 517 | . 297 100 120 Lost Part 70 | . 20 40 10 Squads Dispatched 6 | . 6 . . Investigation 3 | . 3 . . Extermination . | . . . . Reinforcement 3 | . 3 . . Assault . | . . . . Garrison . | . . . . Intercept . | . . . . Searches Triggered . | . . . . Construction Impeded . | . . . . Haulers Reinforced . | . . . . Active Scanning Responses . | . . . . Cargo Convoy Interrupts . | . . . . Stealth | -11 -10 -10 -9 --------- Run | Yrd Mat Sub Rec Distress Signals 1 | . 1 . . Communications Jammed . | . . . . Distress Signals . | . . . . Times Spotted 48 | . 30 14 4 Peak Tracking Total 7 | . 7 5 5 Tactical Retreats 6 | . 4 2 . Traps | -11 -10 -10 -9 ------- Run | Yrd Mat Sub Rec Traps Triggered 1 | . 1 . . Indirectly . | . . . . Trap Hack Attempts . | . . . . Triggered . | . . . . Disarmed . | . . . . Reprogrammed . | . . . . Reused . | . . . . Traps Extracted . | . . . . Installed . | . . . . Triggered . | . . . . Machines | -11 -10 -10 -9 ---------- Run | Yrd Mat Sub Rec Machines Disabled . | . . . . Max in Single Turn . | . . . . Machines Repaired . | . . . . Machines Dismantled . | . . . . Machines Sabotaged . | . . . . Overloaded Fab Kills . | . . . . Hacking | -11 -10 -10 -9 --------- Run | Yrd Mat Sub Rec Machines Accessed 14 | . 8 . 6 Terminals 10 | . 7 . 3 Fabricators . | . . . . Repair Stations . | . . . . Recycling Units 4 | . 1 . 3 Scanalyzers . | . . . . Garrison Access . | . . . . Total Hacks 55 | . 35 . 20 Successful 35 | . 22 . 13 Failed 19 | . 12 . 7 Catastrophic 1 | . 1 . . Database Lockouts 1 | . 1 . . Manual 35 | . 24 . 11 Terminals 47 | . 33 . 14 Fabricators . | . . . . Repair Stations . | . . . . Recycling Units 8 | . 2 . 6 Scanalyzers . | . . . . Garrison Access . | . . . . Terminal Hacks 14 | . 10 . 4 Part Schematic 3 | . 1 . 2 Prototype ID Bank 1 | . . . 1 Branch Access Points 1 | . 1 . . Emergency Access Points 1 | . 1 . . Terminal Index 1 | . 1 . . Locate Traps 2 | . 2 . . Security Status 1 | . . . 1 Recall Investigation 1 | . 1 . . Registered Components 1 | . 1 . . Registered Prototypes 1 | . 1 . . Zone Layout 1 | . 1 . . Fabricator Hacks . | . . . . Repair Station Hacks . | . . . . Recycling Unit Hacks 3 | . . . 3 Retrieve Components 3 | . . . 3 Scanalyzer . | . . . . Garrison Access Hacks . | . . . . Unauthorized Hacks 18 | . 12 . 6 Terminals 15 | . 12 . 3 Assimilate 1 | . 1 . . Botnet 10 | . 7 . 3 Disrupt 2 | . 2 . . Operators 1 | . 1 . . Override 1 | . 1 . . Fabricators . | . . . . Repair Stations . | . . . . Recycling Units 3 | . . . 3 Tunnel 3 | . . . 3 Scanalyzers . | . . . . Garrison Access . | . . . . Data Cores Recovered 1 | . 1 . . Used . | . . . . Hacking Detections 11 | . 7 . 4 Full Trace Events 4 | . 1 . 3 Feedback Events . | . . . . Feedback Blocked . | . . . . Robot Schematics Acquired . | . . . . Robots Built . | . . . . Authchips . | . . . . Time . | . . . . Total Robot Build Rating . | . . . . Part Schematics Acquired 3 | . 1 . 2 Parts Built . | . . . . Authchips . | . . . . Time . | . . . . Total Part Build Rating . | . . . . Part Studies Acquired . | . . . . Parts Repaired . | . . . . Time . | . . . . Parts Recycled . | . . . . Recycled Matter . | . . . . Retrieved Matter . | . . . . Retrieved Components 8 | . . . 8 Parts Scanalyzed . | . . . . Part Schematics Acquired . | . . . . Parts Damaged . | . . . . Bothacking | -11 -10 -10 -9 ------------ Run | Yrd Mat Sub Rec Used RIF Installer . | . . . . Robots Hacked . | . . . . Non-combat . | . . . . Combat . | . . . . Robot Hacks Applied . | . . . . Relay Couplers Released . | . . . . Fabnet Peak Effective % . | . . . . Robots Rewired . | . . . . Allies Hacked . | . . . . Hacks Repelled . | . . . . Allies | -11 -10 -10 -9 -------- Run | Yrd Mat Sub Rec Total Allies . | . . . . Largest Group . | . . . . Highest-Rated Group . | . . . . Highest-Rated Ally . | . . . . Total Orders . | . . . . Ally Attacks . | . . . . Total Damage . | . . . . Kills . | . . . . Allies Corrupted . | . . . . Allies Melted . | . . . . Intel | -11 -10 -10 -9 ------- Run | Yrd Mat Sub Rec Active Infowar (turns) . | . . . . Robot Analysis Total . | . . . . Derelict Logs Recovered . | . . . . Drone Launches . | . . . . Drone Recoveries . | . . . . Exploration | -11 -10 -10 -9 ------------- Run | Yrd Mat Sub Rec Turns Passed 1613 | 42 682 482 407 Spaces Moved 1279 | 38 495 389 357 Core 9 | 2 7 . . Treads . | . . . . Legs . | . . . . Wheels 1270 | 36 488 389 357 Hover . | . . . . Flight . | . . . . Fastest Speed 50 | 50 90 100 90 Average Speed 100 | 87 98 102 102 Slowest Speed 150 | 90 150 105 120 Overloaded Moves . | . . . . Propulsion Burnouts . | . . . . Robots Hopped . | . . . . Potential Cave-ins . | . . . . Cave-ins Triggered . | . . . . Exploration Rate (%) 42 | 3 72 20 76 Regions Visited 3 Branch Regions 2 Pre-discovered Areas 3 | . . . 3 Known Exits Taken . | . . . . Unknown Exits Taken 3 | 1 1 1 . Scrap Searched . | . . . . Spaces Dug 8 | . . 8 . Terrain Destroyed 35 | . 20 14 1 Melee . | . . . . Projectile 2 | . . 1 1 AOE 33 | . 20 13 . Terrain Rammed . | . . . . Walls Destroyed . | . . . . Machines Disabled . | . . . . Actions | -11 -10 -10 -9 --------- Run | Yrd Mat Sub Rec Total 1458 | 43 592 437 386 Wait 45 | . 24 12 9 Move 1276 | 37 494 388 357 Hop . | . . . . Pick Up 14 | . 8 3 3 Fast Attach 13 | 6 2 3 2 Attach 7 | . 2 3 2 Detach 1 | . 1 . . Swap 6 | . 2 2 2 Drop 9 | . 2 2 5 Fire 87 | . 57 24 6 Melee . | . . . . Ram . | . . . . Kick . | . . . . Crush . | . . . . Escape Stasis . | . . . . Rewire . | . . . . Trap . | . . . . Miscellaneous . | . . . . Route ------- -11/Scrapyard -10/Materials (discovered 4 exits: [*Mat] / *Min x2 / [*Sub]) -10/Subcaves -9/Recycling (discovered 1 exit: [*Fac]) History --------- Turn | Location | Event 5 | -11/Scrapyard | Discovered new exit (range 16) 43 | -11/Scrapyard | Entered Materials 57 | -10/Materials | Identified exit to Mines 310 | -10/Materials | Build established: Mutant 330 | -10/Materials | Discovered new exit (range 11) 557 | -10/Materials | Central database locked down 719 | -10/Materials | Discovered new exit (range 7) 725 | -10/Materials | Entered Subcaves 726 | -10/Subcaves | Approached by a straggling Scientist 825 | -10/Subcaves | A Subdweller sparked back to life 825 | -10/Subcaves | A Subdweller sparked back to life 831 | -10/Subcaves | Core integrity fell below 50% 844 | -10/Subcaves | Core integrity fell below 20% 863 | -10/Subcaves | Found Prototype Energy Cannon 866 | -10/Subcaves | Lost 3 parts (1p1n1w) 1073 | -10/Subcaves | A swath of the cavern ceiling suddenly collapsed 1120 | -10/Subcaves | A swath of the cavern ceiling suddenly collapsed 1201 | -10/Subcaves | Discovered new exit (range 5) 1207 | -10/Subcaves | Entered Recycling 1208 | -9/Recycling | Joined Warlord attack on 0b10 via Recycling 1308 | -9/Recycling | Build established: Scavenger-Mutant 1425 | -9/Recycling | Discovered new exit (range 16) 1609 | -9/Recycling | Build established: Mutant 1614 | -9/Recycling | Destroyed by Y-45 Defender with Beam Rifle Last Messages --------------- 01425_ EXIT=FOUND 01431_ Acquired 20 matter. 01434_ Dropped Sml. Storage Unit. 01435_ Acquired 10 matter. 01447_ Acquired Sensor Array. 01586_ Y-45 Defender springs to life. 01587_ Discarded Hacking Suite. 01590_ Destroyed Shock Rifle. 01590_ P-60 Hacker knocked back. 01591_ Material Processor disabled. 01593_ P-60 Hacker destroyed. 01599_ Destroyed Aluminum Leg. 01599_ G-34 Mercenary knocked back. 01601_ R-06 Scavenger collects Imp. Heat Sink. 01602_ R-06 Scavenger destroyed. 01604_ R-06 Scavenger collects Imp. Heat Sink. 01605_ G-34 Mercenary destroyed. 01607_ Imp. Light Cannon destroyed. 01607_ R-06 Scavenger collects Sml. Laser. 01608_ R-06 Scavenger collects Com. Wheel. Map ----- +----------------------------------------------------+ | ????####### #????# #?# | | ????# ????# """" #?# | | ????# #????# """" #?# | | ????# ###### """" #?# | | ????# + """" #?# | | ????# # #?# | | ????# # #?# | | ????# + #?# | | ????# # #?# | | ????# """ + #?# | | ????# """"" ##############?# | | ????# """"" #??????????????# | | ????# """"" #??????????????# | | ????# """ #??????????????## | | ????# #???????????????? | | ????# ########???????????????? | | ????# """ #?####?????????????????? | | ????# """"" ## ?????????????????? | | ????# """"" ## ! ?????????????????? | | ????# """" + #????????????????? | | ????# """ # #????????????????? | | ????# # [ #????????????????? | | ????# r +% %#????????????????? | | ????#### r r # #????????????????? | | ???????# r #[ #????????????????? | | ???????#%%Y @ # !#????????????????? | | ???????#;######## # %!#????????????????? | | ??????%%%=??????# #= #????????????????? | | ???? ??????# + ! =#????????????????? | | ???# ?????# #/ %#????????????????? | | ???# ! ?????# ###/#########+####????? | | ???# ????# ???? | | ???# ????+ ???? | | ???# %! ???# ???? | | ???#[ ???# #######????? | | ???# ! ??# #??????????? | | ???# ! ??+ #??????????? | | ???# ?###### #??????????# | | ???# ] ??????# ##??????????# | | ????#+#####+##?#####?# #???????????# | | ??????????# #"""#?# ##???????##?# | | ??????????# #"Y"### %######## #?# | | ??????????# !! ## #?# | | ??????????# ## #?# | | ??????????# ## #?# | | ??????????# ## ### | | ????# + ## | | ????? ############## ####### ### | | ??????# ! ! !# ""#???# #?# | | ??????# + Y"##### #?# | +----------------------------------------------------+ Best States ------------- Heat Dissipation 25 Energy Generation 15 Energy Capacity 250 Matter Stores 300 Matter Capacity 300 Sight Range 16 Terrain Scan Density 10 Armor Coverage 150 Evasion (%) 42 Offensive Hacking 10 Item Schematics ----------------- Hcp. Storage Unit | -10/Materials | Hacked Hrd. Heavy Armor Plating | -9/Recycling | Hacked Particle Gun | -9/Recycling | Hacked Robot Schematics ------------------ None Fabricated ------------ Nothing Repaired ---------- Nothing Studied --------- None Alien Tech Used ----------------- None Achievements -------------- None Challenges ------------ None Game ------ Seed LayeredInertialMediator Manual? 0 Play Time 00:17:15 Cumulative 313.2 hours Start 2025.12.19 @ 01:53:41 End 2025.12.19 @ 02:14:48 Sessions 1 Manual Loads 0 Difficulty Rogue Special Mode None Game No. 113 Rogue 113 Adventurer 0 Explorer 0 Win Type - Total 3 Types 2/0/0/0/0/0/0/0/0/1 Lore% 75 Gallery% 70 Achievement% 59 Wizard Run 0 Options --------- Layout 1 ASCII 0 Keyboard 0 Movement Mouse Keybinds 0 Fullscreen 2 Font 32/SmallcapsGlow Map View 50x35 Zoom Use 0% Tactical HUD 1 Map Filters NONE Filters NONE Steam 1 RUN: 4303375c-64e5-43da-a607-e6ce20e43d7e